bitfinex-derivatives/quotes_ETHF0:USTF0_20230902
["timestamp","ask_amount","ask_price","bid_price","bid_amount"]
[1693690609344,10.19338278,1637.3,1637.2,9.79078481]
[1693690609852,10.19338278,1637.3,1637.2,6.73405634]
[1693690611251,8.58996941,1637.3,1637.2,6.73405634]
[1693690611560,8.58996941,1637.3,1637.2,9.78994813]
[1693690611848,8.58996941,1637.3,1637.2,6.73405634]
[1693690612351,8.58996941,1637.3,1637.2,9.7899504]
[1693690612650,8.58996941,1637.3,1637.2,6.73405634]
[1693690614648,10.19338278,1637.3,1637.2,5.1371]
[1693690617051,12.59390696,1637.3,1637.2,5.1371]
[1693690617250,10.19338278,1637.3,1637.2,5.1371]
[1693690617450,8.58996941,1637.3,1637.2,6.73405634]
[1693690620555,10.19338278,1637.3,1637.2,6.73405634]
[1693690620755,8.58996941,1637.3,1637.2,6.73405634]
[1693690621458,10.19338278,1637.3,1637.2,6.73405634]
[1693690621656,8.58996941,1637.3,1637.2,6.73405634]
[1693690621957,10.19338278,1637.3,1637.2,6.73405634]
[1693690622755,10.19338278,1637.3,1637.2,1.59695634]
[1693690622961,10.99049359,1637.3,1637.1,1.65805634]
[1693690623256,7.09532621,1637.2,1637.1,1.65805634]
[1693690623560,7.09532621,1637.2,1637.0,2.39575198]
[1693690623858,5.495,1637.1,1637.0,2.39575198]
[1693690624053,5.495,1637.1,1637.0,3.05639517]
[1693690624253,5.495,1637.1,1636.9,2.39575198]
[1693690624448,5.495,1637.0,1636.9,2.39575198]
[1693690624656,5.495,1637.0,1636.9,5.2629155]
[1693690624861,5.495,1637.0,1636.9,8.31938004]
[1693690626962,8.2434,1637.0,1636.9,8.31938004]
[1693690631767,8.2434,1637.0,1636.9,5.92358173]
[1693690632065,8.2434,1637.0,1636.9,8.32077644]
[1693690632366,8.2434,1637.0,1636.9,5.92358173]
[1693690632572,8.2434,1637.0,1636.9,8.32079449]
[1693690633868,2.7484,1637.0,1636.9,8.32079449]
[1693690634571,2.7484,1637.0,1636.9,14.6148967]
[1693690639580,2.7484,1637.0,1636.9,15.41397545]
[1693690663188,2.7484,1637.0,1636.9,11.41858173]
[1693690669801,2.7484,1637.0,1636.9,15.41723507]
[1693690676805,2.7484,1637.0,1636.9,11.41858173]
[1693690680900,2.7484,1637.0,1636.9,5.92358173]
[1693690686699,2.7484,1637.0,1636.9,9.9247576]
[1693690686904,2.7484,1637.0,1636.9,5.92358173]
[1693690691907,2.7484,1637.0,1636.9,11.41858173]
[1693690695604,2.7484,1637.0,1636.9,16.21305419]
[1693690696207,3.23013215,1637.1,1636.9,16.21305419]
[1693690696208,3.23013215,1637.1,1636.9,11.41858173]
[1693690696507,3.23013215,1637.1,1637.0,13.41460087]
[1693690696508,0.49633215,1637.1,1637.0,13.41460087]
[1693690696707,2.7745,1637.2,1637.1,0.0611]
[1693690696905,2.7745,1637.2,1637.1,8.25461821]
[1693690699510,5.5176,1637.2,1637.1,12.25395109]
[1693690699912,7.11863097,1637.2,1637.1,12.25395109]
[1693690702509,5.5176,1637.2,1637.1,12.25395109]
[1693690720320,5.5176,1637.2,1637.1,12.2504083]
[1693690722122,5.5176,1637.2,1637.1,11.45083984]
[1693690726123,5.5176,1637.2,1637.1,8.25407322]
[1693690726323,5.5176,1637.2,1637.1,11.4499702]
[1693690726523,5.5176,1637.2,1637.1,11.44998538]
[1693690726923,5.5176,1637.2,1637.1,11.45001251]
[1693690728028,5.5176,1637.2,1637.1,8.25406343]
[1693690728231,5.5176,1637.2,1637.1,12.24899979]
[1693690735325,5.5176,1637.2,1637.1,8.25406343]
[1693690745147,5.5176,1637.2,1637.1,13.04798706]
[1693690745352,5.5176,1637.2,1637.1,8.25406343]
[1693690782387,5.5176,1637.2,1637.1,13.04798706]
[1693690782890,5.5176,1637.2,1637.1,13.05075939]
[1693690789490,5.5176,1637.2,1637.1,8.25381615]
[1693690797605,5.5176,1637.2,1637.1,13.05075939]
[1693690799613,5.99745429,1637.2,1637.1,13.05075939]
[1693690801707,2.77698566,1637.4,1637.1,18.93696607]
[1693690801903,2.40526572,1637.6,1637.4,0.0611]
[1693690802108,13.795,1637.9,1637.4,0.0611]
[1693690802109,15.33493089,1637.9,1637.6,0.0611]
[1693690802309,4.48940619,1638.0,1637.9,0.0611]
[1693690802310,4.23473089,1638.0,1637.9,0.0611]
[1693690802511,2.6948,1638.0,1637.9,13.7416921]
[1693690802712,2.6948,1638.0,1637.9,16.73620825]
[1693690803116,1.17314178,1638.3,1637.9,16.73620825]
[1693690803317,2.7459,1638.3,1638.2,1.59403158]
[1693690804118,3.24570137,1638.3,1638.2,4.4611951]
[1693690805717,3.24570137,1638.3,1638.2,2.86716352]
[1693690808812,2.7459,1638.3,1638.2,2.86716352]
[1693690816430,2.7459,1638.3,1638.2,2.92826352]
[1693690817326,2.7459,1638.3,1638.2,10.0172951]
[1693690818424,2.7459,1638.3,1638.2,10.00795577]
[1693690818627,2.7459,1638.3,1638.2,13.06171658]
[1693690818931,2.7459,1638.3,1638.2,13.06161056]
[1693690819729,2.7459,1638.3,1638.2,13.85395669]
[1693690824836,2.7459,1638.3,1638.2,15.43694791]
[1693690825937,2.7459,1638.3,1638.2,13.05990953]
[1693690826235,2.7459,1638.3,1638.2,15.43694791]
[1693690827138,2.7459,1638.3,1638.2,13.85395669]
[1693690827437,2.7459,1638.3,1638.2,15.43691242]
[1693690827742,2.7459,1638.3,1638.2,15.43685428]
[1693690830239,2.7459,1638.3,1638.2,15.43706603]
[1693690831439,2.7459,1638.3,1638.2,13.85395669]
[1693690832331,0.60836849,1638.3,1638.2,13.85395669]
[1693690834840,0.60836849,1638.3,1638.2,13.0613402]
[1693690835743,0.60836849,1638.3,1638.2,15.43837858]
[1693690836643,0.60836849,1638.3,1638.2,13.85395669]
[1693690836940,0.60836849,1638.3,1638.2,15.43911203]
[1693690837336,0.60836849,1638.3,1638.2,13.85395669]
[1693690840339,0.60836849,1638.3,1638.2,14.64630282]
[1693690842844,0.60836849,1638.3,1638.2,15.43864895]
[1693690843345,0.60836849,1638.3,1638.2,11.47691831]
[1693690844343,0.60836849,1638.3,1638.2,16.23099508]
[1693690844742,0.60836849,1638.3,1638.2,16.16989508]
[1693690845444,0.60836849,1638.3,1638.2,16.9622412]
[1693690849750,0.60836849,1638.3,1638.2,16.19656476]
[1693690852347,0.60836849,1638.3,1638.2,11.41581831]
[1693690852747,0.60836849,1638.3,1638.2,16.19656476]
[1693690853343,0.60836849,1638.3,1638.2,11.41581831]
[1693690856750,0.60836849,1638.3,1638.2,11.47681831]
[1693690858051,0.60836849,1638.3,1638.2,16.25756476]
[1693690859155,0.60836849,1638.3,1638.2,11.47681831]
[1693690859854,0.60836849,1638.3,1638.2,16.25756476]
[1693690863757,0.60836849,1638.3,1638.2,16.19656476]
[1693690863959,0.60836849,1638.3,1638.2,16.25756476]
[1693690864258,0.60836849,1638.3,1638.2,21.80398765]
[1693690864459,4.34766601,1638.6,1638.3,0.061]
[1693690864765,2.8142,1638.5,1638.4,2.86716352]
[1693690865061,2.8142,1638.5,1638.4,15.40418475]
[1693690883170,2.8142,1638.5,1638.4,11.41581831]
[1693690883376,2.8142,1638.5,1638.4,15.40418475]
[1693690887272,2.8142,1638.5,1638.4,11.41581831]
[1693690888381,2.8142,1638.5,1638.4,15.40380064]
[1693690888681,2.8142,1638.5,1638.4,11.41581831]
[1693690895283,2.8142,1638.5,1638.4,15.40388065]
[1693690895782,2.8142,1638.5,1638.4,11.41581831]
[1693690902288,2.8142,1638.5,1638.4,15.4046426]
[1693690903288,2.8142,1638.5,1638.4,11.41581831]
[1693690903684,2.8142,1638.5,1638.4,16.20218263]
[1693690903893,0.48469745,1638.6,1638.5,5.495]
[1693690904189,5.4846,1638.7,1638.5,9.88150678]
[1693690904387,5.4846,1638.7,1638.6,12.53562982]
[1693690904588,5.4846,1638.7,1638.6,15.40279334]
[1693690905693,5.4846,1638.7,1638.6,14.604332]
[1693690910391,5.4846,1638.7,1638.6,15.40279334]
[1693690925510,5.4846,1638.7,1638.6,14.60092897]
[1693690930119,7.88986572,1638.7,1638.6,14.60092897]
[1693690931321,5.4846,1638.7,1638.6,14.60092897]
[1693690932522,5.4846,1638.7,1638.6,15.40279334]
[1693690940429,5.4846,1638.7,1638.6,14.60203215]
[1693690940627,5.4846,1638.7,1638.6,11.41581831]
[1693690941529,5.4846,1638.7,1638.6,14.60225134]
[1693690941729,5.4846,1638.7,1638.6,11.41581831]
[1693690942628,5.4846,1638.7,1638.6,15.40279334]
[1693690946429,7.88986572,1638.7,1638.6,15.40279334]
[1693690947033,5.4846,1638.7,1638.6,15.40279334]
[1693690947627,5.4846,1638.7,1638.6,11.41581831]
[1693690948233,7.88986572,1638.7,1638.6,11.41581831]
[1693690954639,7.88986572,1638.7,1638.6,15.40239614]
[1693690956537,5.4846,1638.7,1638.6,15.40239614]
[1693690956944,5.4846,1638.7,1638.6,11.41581831]
[1693690957438,5.4846,1638.7,1638.6,15.40237737]
[1693690957736,5.4846,1638.7,1638.6,15.40250901]
[1693690960141,7.88986572,1638.7,1638.6,15.40250901]
[1693690961044,5.4846,1638.7,1638.6,11.41581831]
[1693690961344,7.08492833,1638.7,1638.6,15.40271229]
[1693690962036,9.49019405,1638.7,1638.6,12.53554877]
[1693690963433,7.88986572,1638.7,1638.6,12.53554877]
[1693690969648,9.49019405,1638.7,1638.6,12.53554877]
[1693690969854,9.49019405,1638.7,1638.6,8.54865479]
[1693690971057,9.49019405,1638.7,1638.6,12.53554877]
[1693690972158,9.49019405,1638.7,1638.6,15.40271229]
[1693690972353,7.08492833,1638.7,1638.6,15.40271229]
[1693690973657,5.4846,1638.7,1638.6,15.40271229]
[1693690974164,7.08492833,1638.7,1638.6,15.40271229]
[1693690974765,5.4846,1638.7,1638.6,15.40271229]
[1693690974968,7.08492833,1638.7,1638.6,15.40271229]
[1693690975474,9.49019405,1638.7,1638.6,15.40271229]
[1693690977571,7.88986572,1638.7,1638.6,15.40271229]
[1693690977870,7.88986572,1638.7,1638.6,11.41581831]
[1693690978065,7.88986572,1638.7,1638.6,8.54865479]
[1693690980775,7.88986572,1638.7,1638.6,11.41581831]
[1693690987269,7.88986572,1638.7,1638.6,8.54865479]
[1693690987670,7.88986572,1638.7,1638.6,11.41581831]
[1693690992674,2.40526572,1638.7,1638.6,11.41581831]
[1693690992877,0.50010074,1638.8,1638.6,11.41581831]
[1693690993177,4.23235593,1639.0,1638.7,14.66176537]
[1693690993484,3.0602,1639.0,1638.9,9.53922556]
[1693690993682,3.0602,1639.0,1638.9,13.92573234]
[1693690996185,3.0602,1639.0,1638.9,9.94250678]
[1693690996384,3.0602,1639.0,1638.9,13.12495499]
[1693690996780,3.54948259,1639.0,1638.9,13.12495499]
[1693690999984,3.54948259,1639.0,1638.9,13.92573234]
[1693691001887,3.54948259,1639.0,1638.9,9.94250678]
[1693691002293,3.54948259,1639.0,1638.9,13.92573234]
[1693691002593,3.54948259,1639.0,1638.9,9.94250678]
[1693691002787,3.54948259,1639.0,1638.9,13.12200421]
[1693691002992,3.54948259,1639.0,1638.9,13.12198749]
[1693691008904,0.48928259,1639.0,1638.9,13.12198749]
[1693691009200,2.8242,1639.2,1638.9,13.12198749]
[1693691009400,2.8242,1639.2,1639.1,3.97257137]
[1693691009600,2.8242,1639.2,1639.1,6.83973489]
[1693691009798,2.8242,1639.2,1639.1,9.89338968]
[1693691010194,5.22946572,1639.2,1639.1,9.89338968]
[1693691013897,2.8242,1639.2,1639.1,8.30436113]
[1693691014204,2.8242,1639.2,1639.1,9.63721312]
[1693691015001,2.8242,1639.2,1639.1,8.84257384]
[1693691015902,2.8242,1639.2,1639.1,11.22611666]
[1693691017905,2.8242,1639.2,1639.1,11.22613611]
[1693691018401,2.8242,1639.2,1639.1,9.63721312]
[1693691020203,7.4994022,1639.2,1639.1,5.43719761]
[1693691022408,7.4994022,1639.2,1639.1,7.02634807]
[1693691022610,7.4994022,1639.2,1639.1,7.02636419]
[1693691022811,7.4994022,1639.2,1639.1,5.43719761]
[1693691023006,7.4994022,1639.2,1639.1,7.02646253]
[1693691023306,7.4994022,1639.2,1639.1,5.43719761]
[1693691029410,7.4994022,1639.2,1639.1,8.30436113]
[1693691030112,7.4994022,1639.2,1639.1,9.10029902]
[1693691030808,2.8242,1639.2,1639.1,9.10029902]
[1693691031906,2.8242,1639.2,1639.1,14.59529902]
[1693691034510,2.8242,1639.2,1639.1,15.39904387]
[1693691037922,5.22946572,1639.2,1639.1,12.53188035]
[1693691038121,5.22946572,1639.2,1639.1,7.03688035]
[1693691038618,5.22946572,1639.2,1639.1,3.98322556]
[1693691041919,12.32479405,1639.2,1639.1,3.05365479]
[1693691042125,12.32479405,1639.2,1639.1,3.18618422]
[1693691044317,12.32479405,1639.2,1639.1,3.05365479]
[1693691044520,12.32479405,1639.2,1639.0,7.03688035]
[1693691045124,12.32479405,1639.2,1639.1,3.18628414]
[1693691046636,12.32568033,1639.2,1639.1,3.1863126]
[1693691048634,14.72750225,1639.2,1639.1,3.1863126]
[1693691048834,12.32568033,1639.2,1639.1,3.1863126]
[1693691049628,14.72750225,1639.2,1639.1,3.1863126]
[1693691049837,12.32568033,1639.2,1639.1,3.1863126]
[1693691050233,9.49803653,1639.2,1639.1,6.05347612]
[1693691050437,10.30208764,1639.2,1639.1,9.10576637]
[1693691050834,7.89682192,1639.2,1639.1,3.05229025]
[1693691051037,10.30208764,1639.2,1639.1,2.39017048]
[1693691051237,10.30208764,1639.2,1639.1,5.44246073]
[1693691051840,10.30208764,1639.2,1639.1,8.30962425]
[1693691052138,10.30208764,1639.2,1639.1,5.44246073]
[1693691052441,9.50163743,1639.2,1639.1,3.1863126]
[1693691053136,11.90345935,1639.2,1639.1,3.1863126]
[1693691055742,10.30208764,1639.2,1639.1,2.39028227]
[1693691057737,7.90026572,1639.2,1639.1,3.98370419]
[1693691057944,10.3019105,1639.2,1639.1,2.39028227]
[1693691058139,10.3019105,1639.2,1639.1,3.98352193]
[1693691060140,10.3019105,1639.2,1639.1,4.64552991]
[1693691060338,11.10269494,1639.2,1639.1,1.59323966]
[1693691060739,11.10269494,1639.2,1639.0,7.0361676]
[1693691060944,13.00607113,1639.1,1639.0,1.59323966]
[1693691062147,13.8074657,1639.1,1638.9,3.98352193]
[1693691062344,13.8074657,1639.1,1638.9,1.59323966]
[1693691062345,11.90084807,1639.0,1638.9,1.59323966]
[1693691063051,10.30061513,1639.0,1638.9,1.59323966]
[1693691063352,11.90082754,1639.0,1638.9,1.59323966]
[1693691064154,11.9003645,1639.0,1638.9,1.59323966]
[1693691065350,9.50001509,1639.0,1638.9,1.59323966]
[1693691065550,11.9003645,1639.0,1638.9,1.59323966]
[1693691065751,9.50001509,1639.0,1638.9,1.59323966]
[1693691066347,11.9003645,1639.0,1638.9,1.59323966]
[1693691066546,9.50001509,1639.0,1638.9,1.59323966]
[1693691066748,11.9003645,1639.0,1638.9,1.59323966]
[1693691067148,9.50001509,1639.0,1638.9,1.59323966]
[1693691068656,7.90026572,1639.0,1638.9,1.59323966]
[1693691069559,9.50001509,1639.0,1638.9,1.59323966]
[1693691070260,7.90026572,1639.0,1638.9,1.59323966]
[1693691074664,8.37978209,1639.0,1638.9,1.59323966]
[1693691075564,5.97451637,1639.0,1638.9,4.46040318]
[1693691076163,8.37978209,1639.0,1638.9,4.46040318]
[1693691080371,8.37978209,1639.0,1638.9,1.59323966]
[1693691082172,5.97451637,1639.0,1638.9,4.46040318]
[1693691082368,5.97451637,1639.0,1638.9,7.51327068]
[1693691082564,7.57426574,1639.0,1638.9,2.86716352]
[1693691082769,7.57426574,1639.0,1638.9,4.46040318]
[1693691082970,9.97953146,1639.0,1638.9,4.46040318]
[1693691085266,9.97953146,1639.0,1638.9,1.59323966]
[1693691089977,9.97953146,1639.0,1638.9,1.65423966]
[1693691090576,9.97953146,1639.0,1638.9,4.04452193]
[1693691090778,9.97953146,1639.0,1638.9,7.09741173]
[1693691092177,9.97953146,1639.0,1638.9,5.50417207]
[1693691092376,9.97953146,1639.0,1638.9,7.09637162]
[1693691092671,9.97945771,1639.0,1638.9,7.09437257]
[1693691093270,9.97945771,1639.0,1638.9,5.50217361]
[1693691094476,9.97945771,1639.0,1638.9,8.36933713]
[1693691094977,9.97945771,1639.0,1638.9,5.50217361]
[1693691097174,12.37897114,1639.0,1638.9,5.50217361]
[1693691097884,10.77929552,1639.0,1638.9,7.09531368]
[1693691098084,10.77929552,1639.0,1638.9,5.50217361]
[1693691098979,10.77929552,1639.0,1638.9,7.09548257]
[1693691099179,10.77929552,1639.0,1638.9,5.50217361]
[1693691099982,10.77929552,1639.0,1638.9,7.09570894]
[1693691100183,10.77929552,1639.0,1638.9,7.09591475]
[1693691100480,10.77929552,1639.0,1638.9,5.50217361]
[1693691101181,8.37978209,1639.0,1638.9,5.50217361]
[1693691101382,11.57913333,1639.0,1638.9,5.50217361]
[1693691101679,8.37978209,1639.0,1638.9,5.50217361]
[1693691102081,10.78194117,1639.0,1638.9,5.50217361]
[1693691102282,8.37978209,1639.0,1638.9,5.50217361]
[1693691102677,11.57913333,1639.0,1638.9,5.50217361]
[1693691102877,11.57913333,1639.0,1638.9,7.09599332]
[1693691104178,11.57913333,1639.0,1638.9,5.50217361]
[1693691104786,8.37978209,1639.0,1638.9,5.50217361]
[1693691105284,11.57913333,1639.0,1638.9,5.50217361]
[1693691112791,11.57913333,1639.0,1638.9,4.64703368]
[1693691112986,12.37897114,1639.0,1638.9,1.65515852]
[1693691113193,8.37978209,1639.0,1638.9,1.65515852]
[1693691113792,12.37897114,1639.0,1638.9,1.65515852]
[1693691114391,11.58347606,1639.0,1638.9,4.70817263]
[1693691114587,11.58347606,1639.0,1638.9,1.65515852]
[1693691115392,11.58347606,1639.0,1638.9,4.70818066]
[1693691116187,11.58347606,1639.0,1638.9,1.65515852]
[1693691119890,11.58347606,1639.0,1638.9,4.04345697]
[1693691120092,11.58347606,1639.0,1638.9,7.09649274]
[1693691121997,17.07847606,1639.0,1638.9,7.09649274]
[1693691123804,17.07847606,1639.0,1638.9,7.03549274]
[1693691124400,17.07847606,1639.0,1638.9,3.98245697]
[1693691125410,17.07847606,1639.0,1638.9,4.04345697]
[1693691125602,17.07847606,1639.0,1638.9,7.09649274]
[1693691126804,17.07847606,1639.0,1638.9,7.03549274]
[1693691127103,17.07847606,1639.0,1638.9,3.98245697]
[1693691128007,17.07847606,1639.0,1638.9,4.70819429]
[1693691132017,11.58347606,1639.0,1638.9,4.70819429]
[1693691134916,8.37978209,1639.0,1638.9,1.65515852]
[1693691138421,12.37897114,1639.0,1638.9,1.65515852]
[1693691143223,11.58372174,1639.0,1638.9,2.44929845]
[1693691143630,11.58372174,1639.0,1638.9,5.50232819]
[1693691147831,11.58372174,1639.0,1638.9,7.09679477]
[1693691148533,2.26993648,1638.9,1638.7,3.18439793]
[1693691148733,11.10496271,1638.8,1638.6,6.03247421]
[1693691149031,8.20387471,1638.7,1638.6,6.03247421]
[1693691149328,10.47381119,1638.7,1638.6,6.03247421]
[1693691149632,10.16847276,1638.7,1638.5,3.18947421]
[1693691149824,9.50228375,1638.6,1638.5,3.18947421]
[1693691154631,10.303802,1638.6,1638.4,6.06497421]
[1693691154825,9.3660821,1638.5,1638.4,6.06497421]
[1693691155226,9.3660821,1638.5,1638.4,3.18947421]
[1693691156329,9.3660821,1638.5,1638.3,6.26257421]
[1693691156732,2.40526572,1638.4,1638.3,6.26257421]
[1693691157137,2.40526572,1638.4,1638.3,3.25047421]
[1693691158139,2.40526572,1638.4,1638.3,0.061]
[1693691160036,7.90026572,1638.4,1638.3,0.061]
[1693691167539,17.90026572,1638.4,1638.3,0.061]
[1693691167754,12.26993648,1638.3,1637.9,0.061]
[1693691168040,12.26993648,1638.3,1637.7,9.85102883]
[1693691168041,7.09455457,1638.0,1637.7,5.8693]
[1693691168248,5.495,1637.8,1637.7,5.8693]
[1693691168636,5.495,1637.8,1637.6,0.061]
[1693691169946,2.40526572,1637.7,1637.6,0.061]
[1693691170147,4.6752022,1637.7,1637.6,2.69617567]
[1693691170545,4.6752022,1637.7,1637.6,0.061]
[1693691177558,10.1702022,1637.7,1637.6,0.061]
[1693691178958,13.0375022,1637.7,1637.6,0.061]
[1693691180754,13.0375022,1637.7,1637.2,9.47672883]
[1693691180755,10.1702022,1637.7,1637.2,8.68038306]
[1693691181057,5.495,1637.6,1637.4,0.061]
[1693691181259,5.495,1637.6,1637.3,2.9891]
[1693691181260,10.1702022,1637.5,1637.3,2.9891]
[1693691181458,5.495,1637.4,1637.2,2.7964]
[1693691181659,5.495,1637.3,1637.2,2.7964]
[1693691181861,3.35635505,1637.3,1637.2,8.29083933]
[1693691182061,3.35635505,1637.3,1637.2,2.62727581]
[1693691182361,3.35635505,1637.3,1637.1,4.38295199]
[1693691182560,8.03155725,1637.3,1637.1,4.38295199]
[1693691183258,8.03155725,1637.3,1637.1,3.0501]
[1693691183857,8.03155725,1637.3,1637.1,5.91726352]
[1693691184058,8.03155725,1637.3,1637.1,6.41238102]
[1693691185056,8.03155725,1637.3,1637.1,3.5452175]
[1693691186863,8.03155725,1637.3,1637.1,6.41238102]
[1693691190263,8.03155725,1637.3,1637.1,3.5452175]
[1693691193360,8.03155725,1637.3,1637.1,3.0501]
[1693691197158,2.9851,1637.2,1637.1,3.0501]
[1693691197766,5.8415,1637.2,1637.1,2.4787123]
[1693691198465,5.8415,1637.2,1637.1,0.061]
[1693691198671,5.8415,1637.2,1637.1,2.47920963]
[1693691198869,5.8415,1637.2,1637.1,0.061]
[1693691199270,5.8415,1637.2,1637.1,2.47922804]
[1693691199470,5.495,1637.2,1636.8,3.24648306]
[1693691199767,5.495,1637.2,1636.8,5.8965]
[1693691199768,5.28433648,1637.1,1636.8,5.8965]
[1693691200065,5.495,1636.9,1636.8,5.8965]
[1693691200271,5.495,1636.9,1636.8,8.31598544]
[1693691200467,5.495,1636.9,1636.8,2.48058544]
[1693691200870,7.76493648,1636.9,1636.8,2.48058544]
[1693691202770,10.69743648,1636.9,1636.8,2.97464684]
[1693691208390,10.69743648,1636.9,1636.8,3.74054446]
[1693691208584,10.69743648,1636.9,1636.8,6.1600299]
[1693691209082,10.69743648,1636.9,1636.8,6.0989299]
[1693691209482,10.69743648,1636.9,1636.8,6.1600299]
[1693691210589,10.69743648,1636.9,1636.8,6.89527567]
[1693691211886,6.28848129,1636.9,1636.8,11.09529118]
[1693691212487,6.28848129,1636.9,1636.8,7.11356235]
[1693691212682,6.28848129,1636.9,1636.8,8.22733754]
[1693691213587,6.28848129,1636.9,1636.8,4.30749883]
[1693691214086,6.28848129,1636.9,1636.8,11.09787722]
[1693691214285,6.28848129,1636.9,1636.8,8.2307137]
[1693691216683,6.28848129,1636.9,1636.8,4.24639883]
[1693691217382,6.28848129,1636.9,1636.8,2.91354684]
[1693691218485,6.28848129,1636.9,1636.8,2.97464684]
[1693691218690,6.28848129,1636.9,1636.8,2.41948544]
[1693691219493,6.28848129,1636.9,1636.8,4.04565576]
[1693691219691,6.28848129,1636.9,1636.8,6.4040412]
[1693691220794,6.28848129,1636.9,1636.8,6.4651412]
[1693691220995,6.28848129,1636.9,1636.8,6.4040412]
[1693691221395,6.28848129,1636.9,1636.8,5.60834707]
[1693691221597,6.28848129,1636.9,1636.8,6.4040412]
[1693691221785,6.28848129,1636.9,1636.8,2.41948544]
[1693691222096,6.28848129,1636.9,1636.8,3.18899416]
[1693691222297,6.28848129,1636.9,1636.8,5.6084796]
[1693691222493,6.28848129,1636.9,1636.8,6.4040412]
[1693691222687,6.28848129,1636.9,1636.8,2.41948544]
[1693691222896,6.28848129,1636.9,1636.8,6.4040412]
[1693691223097,6.28848129,1636.9,1636.8,2.41948544]
[1693691223391,6.28848129,1636.9,1636.8,6.4040412]
[1693691223997,6.28848129,1636.9,1636.8,5.60915041]
[1693691224197,6.28848129,1636.9,1636.8,5.60892711]
[1693691224593,6.28848129,1636.9,1636.8,6.4040412]
[1693691225099,6.28848129,1636.9,1636.8,2.41948544]
[1693691225495,6.28848129,1636.9,1636.8,6.4040412]
[1693691225797,6.28848129,1636.9,1636.8,5.60998804]
[1693691230102,6.28848129,1636.9,1636.8,4.81290694]
[1693691230700,6.28848129,1636.9,1636.8,7.68007046]
[1693691231001,6.28848129,1636.9,1636.8,8.53825156]
[1693691231197,3.35598129,1636.9,1636.8,8.53825156]
[1693691232796,3.35598129,1636.9,1636.8,9.33230472]
[1693691238299,3.35598129,1636.9,1636.8,5.34774896]
[1693691248706,3.35598129,1636.9,1636.8,2.92826352]
[1693691248910,3.35598129,1636.9,1636.8,5.1508212]
[1693691251905,3.35598129,1636.9,1636.8,2.92826352]
[1693691252117,3.35598129,1636.9,1636.8,5.15096925]
[1693691255817,3.35598129,1636.9,1636.8,7.72127601]
[1693691256124,3.35598129,1636.9,1636.8,9.94398174]
[1693691263019,3.35598129,1636.9,1636.8,5.15096925]
[1693691263224,5.495,1636.9,1636.8,5.15096925]
[1693691263421,8.3831,1637.0,1636.8,9.94398174]
[1693691263719,8.3831,1637.0,1636.9,3.55555772]
[1693691267020,17.80116986,1637.3,1636.9,3.55555772]
[1693691267225,2.8432,1637.3,1637.2,5.495]
[1693691267428,20.89246794,1637.6,1637.2,11.91772124]
[1693691267625,2.4354,1637.5,1637.4,0.0611]
[1693691267819,2.4354,1637.5,1637.4,12.94918783]
[1693691268126,2.4354,1637.5,1637.4,15.17003733]
[1693691269719,2.4354,1637.5,1637.4,22.06573697]
[1693691270020,2.4354,1637.5,1637.4,18.87452088]
[1693691270221,2.801,1637.7,1637.4,22.79785732]
[1693691270421,2.801,1637.7,1637.6,3.24841598]
[1693691270728,2.801,1637.7,1637.6,9.67113722]
[1693691271228,2.801,1637.7,1637.6,8.87318403]
[1693691272025,2.801,1637.7,1637.6,14.36818403]
[1693691275134,2.801,1637.7,1637.6,15.95917946]
[1693691276234,2.801,1637.7,1637.6,13.56981667]
[1693691278238,2.801,1637.7,1637.6,9.75611551]
[1693691285343,2.801,1637.7,1637.6,11.345945]
[1693691293343,2.801,1637.7,1637.6,9.75611551]
[1693691298546,2.801,1637.7,1637.6,11.345945]
[1693691298847,2.801,1637.7,1637.6,9.75611551]
[1693691299445,2.801,1637.7,1637.6,11.345945]
[1693691299646,2.801,1637.7,1637.6,9.75611551]
[1693691299948,2.801,1637.7,1637.6,11.345945]
[1693691300543,2.801,1637.7,1637.6,14.3431148]
[1693691300747,2.801,1637.7,1637.6,15.93239803]
[1693691301144,2.801,1637.7,1637.6,14.3431148]
[1693691305151,2.801,1637.7,1637.6,15.13802954]
[1693691309058,2.801,1637.7,1637.6,15.93294429]
[1693691313047,2.801,1637.7,1637.6,11.95837056]
[1693691323062,2.801,1637.7,1637.6,16.72785904]
[1693691326055,2.801,1637.7,1637.6,11.95837056]
[1693691327462,2.801,1637.7,1637.6,11.96769609]
[1693691330858,2.801,1637.7,1637.6,11.96775695]
[1693691337964,2.801,1637.7,1637.6,16.75595104]
[1693691353074,2.801,1637.7,1637.6,11.96775695]
[1693691361077,2.801,1637.7,1637.6,16.75595104]
[1693691367993,2.801,1637.7,1637.6,11.96775695]
[1693691368393,2.801,1637.7,1637.6,12.44997255]
[1693691375193,2.801,1637.7,1637.6,17.23816664]
[1693691379093,2.9193,1637.8,1637.6,17.23816664]
[1693691379299,2.08913388,1637.9,1637.7,7.70664144]
[1693691379602,2.08913388,1637.9,1637.8,11.69960026]
[1693691381101,2.08913388,1637.9,1637.8,13.03245225]
[1693691382296,8.12243388,1637.9,1637.8,13.03245225]
[1693691383103,8.92359629,1637.9,1637.8,13.03245225]
[1693691384106,8.12341797,1637.9,1637.8,13.03245225]
[1693691388804,6.52010906,1637.9,1637.8,13.03245225]
[1693691389103,8.12341797,1637.9,1637.8,13.03245225]
[1693691389401,6.52010906,1637.9,1637.8,9.03949343]
[1693691396506,6.52010906,1637.9,1637.8,9.03771405]
[1693691398515,6.0333,1637.9,1637.8,9.03771405]
[1693691405219,6.0333,1637.9,1637.8,13.02332602]
[1693691411027,6.0333,1637.9,1637.8,9.03771405]
[1693691421335,2.9212,1637.9,1637.8,9.09881405]
[1693691422332,2.9212,1637.9,1637.8,9.57594394]
[1693691424732,3.0878,1638.1,1637.9,2.92826352]
[1693691424933,3.0878,1638.1,1638.0,3.1888078]
[1693691425133,3.0878,1638.1,1638.0,6.73152185]
[1693691425533,3.0878,1638.1,1638.0,9.59861363]
[1693691425738,3.0878,1638.1,1638.0,9.59859995]
[1693691426140,3.0878,1638.1,1638.0,6.40987757]
[1693691427144,3.0878,1638.1,1638.0,10.39588733]
[1693691427443,3.56517419,1638.1,1638.0,10.39588733]
[1693691427748,3.56517419,1638.1,1638.0,6.40987757]
[1693691428151,3.56517419,1638.1,1638.0,10.39588733]
[1693691434256,3.56517419,1638.1,1638.0,6.40987757]
[1693691438061,11.46543991,1638.1,1638.0,6.19702212]
[1693691439154,13.06664679,1638.1,1638.0,2.20986206]
[1693691439457,13.06664679,1638.1,1638.0,5.39993889]
[1693691442463,15.46845712,1638.1,1638.0,5.39993889]
[1693691447062,13.06664679,1638.1,1638.0,5.39993889]
[1693691448060,7.57164679,1638.1,1638.0,8.26710241]
[1693691448360,13.06664679,1638.1,1638.0,5.39993889]